Body Name,Body Code,Service Label,Service Code,Organisational Unit,Expenditure Category, Payment Date,Transaction Number,Net Payment,Supplier Name,Supplier Id 
North West Leicestershire District Council ,31UH,Finance,FINPLA,Financial Planning,Parish precepts,28/09/2011,1221568,"6,970.00",Appleby Magna Parish Council,A000060
North West Leicestershire District Council ,31UH,Street Management,ENOP,Environment Parks,PPE,28/09/2011,1221673,562.27,Arco Limited,A000068
North West Leicestershire District Council ,31UH,Communications,CS,Corporate - Customer Services,Mail Services - Franking Machines,28/09/2011,1221845,"18,000.00",Neopost Limited,A000079
North West Leicestershire District Council ,31UH,Finance,FINPLA,Financial Planning,Parish precepts,28/09/2011,1221580,"46,075.00",Ashby Woulds Town Council,A000089
North West Leicestershire District Council ,31UH,Finance,FINPLA,Financial Planning,Parish precepts,28/09/2011,1221579,"173,100.00",Ashby De La Zouch Town Council,A000091
North West Leicestershire District Council ,31UH,Finance,FINPLA,Financial Planning,Parish precepts,28/09/2011,1221581,"10,000.00",Belton Parish Council,A000164
North West Leicestershire District Council ,31UH,Finance,FINPLA,Financial Planning,Parish precepts,28/09/2011,1221582,"6,500.00",Breedon On The Hill Parish Council,A000215
North West Leicestershire District Council ,31UH,Finance,EXCH,Exchequer Services,IT - Telephone and computing,20/09/2011,1221281,"3,815.47",British Telecommunications Plc,A000233
North West Leicestershire District Council ,31UH,Legal & Democratic,LDLS,Legal Services,Legal services,14/09/2011,1220635,"1,500.00",Browne Jacobson LLP,A000251
North West Leicestershire District Council ,31UH,Legal & Democratic,LDLS,Legal Services,Legal services,21/09/2011,1221286,"1,635.00",Browne Jacobson LLP,A000251
North West Leicestershire District Council ,31UH,Legal & Democratic,LDLS,Legal Services,Legal services,28/09/2011,1221748,690.00,Browne Jacobson LLP,A000251
North West Leicestershire District Council ,31UH,Finance,FINPLA,Financial Planning,Parish precepts,28/09/2011,1221583,"78,764.00",Castle Donington Parish Council,A000300
North West Leicestershire District Council ,31UH,Finance,FINPLA,Financial Planning,Parish precepts,28/09/2011,1221584,"1,400.00",Charley Parish Council,A000322
North West Leicestershire District Council ,31UH,Finance,HOFI,Head of Finance,Parish precepts,07/09/2011,1220397,"3,663.00",Charnwood Borough Council,A000323
North West Leicestershire District Council ,31UH,Environmental Health,EES,Environmental Services,Parish precepts,31/08/2011,1219989,"13,932.00",Charnwood Borough Council,A000323
North West Leicestershire District Council ,31UH,Housing Repairs,HRAHRM,HRA Housing Repairs & Maintenance,Training - events & publications,21/09/2011,1221217,"1,895.00",Chartered Institute Of Housing,A000329
North West Leicestershire District Council ,31UH,Finance,FINPLA,Financial Planning,Parish precepts,28/09/2011,1221569,"7,725.00",Coleorton Parish Council,A000382
North West Leicestershire District Council ,31UH,Environmental Health,EES,Environmental Services,Animals - Boarding Kennels,07/09/2011,1220508,780.00,College Garth Boarding Kennels,A000385
North West Leicestershire District Council ,31UH,Street Management,ESS,Environment - Street Scene,Animals - Boarding Kennels,21/09/2011,1221116,"1,152.57",College Garth Boarding Kennels,A000385
North West Leicestershire District Council ,31UH,Information Technology,ICT,ICT Services,IT - Equipment,14/09/2011,1220899,550.00,Dell Computer Corporation Ltd,A000470
North West Leicestershire District Council ,31UH,Leisure Centres,HPLC,Hood Park Leisure Centre,Leisure - Astro turf maintenance,07/09/2011,1219878,"2,240.00",Technical Surfaces Ltd,A000516
North West Leicestershire District Council ,31UH,Leisure Centres,HPLC,Hood Park Leisure Centre,Leisure - Astro turf maintenance,07/09/2011,1220256,"1,770.00",Technical Surfaces Ltd,A000516
North West Leicestershire District Council ,31UH,Housing,HRAHM,HRA Housing Management,Grants,21/09/2011,1221194,"8,644.02",East Midlands Housing Assocn,A000530
North West Leicestershire District Council ,31UH,Street Management,ENOP,Environment Parks,Environmental & safety products,31/08/2011,1220231,901.72,Glasdon Manufacturing Limited,A000671
North West Leicestershire District Council ,31UH,Street Management,ENOT,Environment Transport,Environmental & safety products,31/08/2011,1219755,589.49,Glasdon Manufacturing Limited,A000671
North West Leicestershire District Council ,31UH,Finance,FINPLA,Financial Planning,Parish precepts,28/09/2011,1221570,"5,748.50",Heather Parish Council,A000749
North West Leicestershire District Council ,31UH,Finance,HOFI,Head of Finance,Training,21/09/2011,1221344,"13,450.00",Hinckley & Bosworth Borough Council,A000770
North West Leicestershire District Council ,31UH,Finance,FINPLA,Financial Planning,Training,31/08/2011,1219924,"187,456.77",Hinckley & Bosworth Borough Council,A000770
North West Leicestershire District Council ,31UH,Finance,FINPLA,Financial Planning,Training,31/08/2011,1219925,"13,450.00",Hinckley & Bosworth Borough Council,A000770
North West Leicestershire District Council ,31UH,Finance,HOFI,Head of Finance,Training,14/09/2011,1220718,857.00,Hinckley & Bosworth Borough Council,A000770
North West Leicestershire District Council ,31UH,Housing Strategy,HS,Community - Housing Strategy,Social Work - Home visiting scheme,31/08/2011,1220210,"4,905.00",Homestart (N.W. Leics),A000780
North West Leicestershire District Council ,31UH,Finance,FINPLA,Financial Planning,Parish precepts,28/09/2011,1221563,"61,000.00",Ibstock Parish Council,A000807
North West Leicestershire District Council ,31UH,Finance,FINPLA,Financial Planning,Parish precepts,28/09/2011,1221586,"42,656.00",Kegworth Parish Council,A000882
North West Leicestershire District Council ,31UH,Housing Repairs,HRAHRM,HRA Housing Repairs & Maintenance,Fuel - key Fuel Systems,31/08/2011,1219880,"14,817.78",Leicestershire County Council,A000950
North West Leicestershire District Council ,31UH,Leisure & Culture,SPA,Sport & Physical Activity,Funding Agreement,14/09/2011,1220696,"15,654.30",Leicestershire County Council,A000950
North West Leicestershire District Council ,31UH,Finance,EXCH,Exchequer Services,Precept/Concessionary Fares Scheme,06/09/2011,1220478,"3,376,245.00",Leicestershire County Council,A000950
North West Leicestershire District Council ,31UH,Leisure Centres,HLC,Hermitage Leisure Centre,Catalogue stocks,21/09/2011,1221003,770.00,ESPO,A000958
North West Leicestershire District Council ,31UH,Finance,EXCH,Exchequer Services,Catalogue stocks,06/09/2011,1220484,569.58,ESPO,A000958
North West Leicestershire District Council ,31UH,Finance,FINPLA,Financial Planning,Parish precepts,28/09/2011,1221587,"3,350.00",Lockington Cum Hemington PC,A000999
North West Leicestershire District Council ,31UH,Finance,FINPLA,Financial Planning,Parish precepts,28/09/2011,1221588,"14,500.00",Long Whatton & Diseworth PC,A001010
North West Leicestershire District Council ,31UH,Leisure & Culture,CULTYP,Cultural Services Children & YoungPeople,Grants,28/09/2011,1221646,"3,500.00",Mantle Community Arts Limited,A001039
North West Leicestershire District Council ,31UH,Finance,FINPLA,Financial Planning,Parish precepts,28/09/2011,1221571,"50,889.50",Measham Parish Council,A001082
North West Leicestershire District Council ,31UH,Street Management,ENOT,Environment Transport,Vehicle Services - Hydraulic Engineers,07/09/2011,1220548,533.00,Midland Hydraulic Services Limited,A001106
North West Leicestershire District Council ,31UH,Leisure & Culture,CULTEV,Cultural Services Arts & Events,Charity Services - Voluntary services,07/09/2011,1220248,"1,090.00",MRC Community Action,A001208
North West Leicestershire District Council ,31UH,Leisure & Culture,CULTYP,Cultural Services Children & YoungPeople,Charity Services - Voluntary services,07/09/2011,1220258,"10,203.40",MRC Community Action,A001208
North West Leicestershire District Council ,31UH,Leisure & Culture,CULTYP,Cultural Services Children & YoungPeople,Charity Services - Voluntary services,07/09/2011,1220259,"7,347.60",MRC Community Action,A001208
North West Leicestershire District Council ,31UH,Leisure Centres,HLC,Hermitage Leisure Centre,NCC Framework Contract Access,07/09/2011,1220271,900.00,Nottinghamshire County Council,A001225
North West Leicestershire District Council ,31UH,Finance,FINPLA,Financial Planning,Parish precepts,28/09/2011,1221572,"21,500.00","Oakthorpe, Donisthorpe &",A001234
North West Leicestershire District Council ,31UH,Finance,FINPLA,Financial Planning,Parish precepts,28/09/2011,1221564,"1,652.50",Osgathorpe Parish Council,A001251
North West Leicestershire District Council ,31UH,Finance,FINPLA,Financial Planning,Parish precepts,28/09/2011,1221573,"8,875.00",Packington Parish Council,A001257
North West Leicestershire District Council ,31UH,Leisure Centres,HPBC,Hood Park Bar and Catering,Catering Supplies - Confectionery.,31/08/2011,1219912,538.48,Palmer Harvey Mclane Ltd,A001264
North West Leicestershire District Council ,31UH,Leisure Centres,HLBC,Hermitage Bar & Catering,Catering Supplies - Confectionery.,31/08/2011,1219914,776.66,Palmer Harvey Mclane Ltd,A001264
North West Leicestershire District Council ,31UH,Leisure Centres,HPBC,Hood Park Bar and Catering,Catering Supplies - Confectionery.,07/09/2011,1220378,531.80,Palmer Harvey Mclane Ltd,A001264
North West Leicestershire District Council ,31UH,Leisure Centres,HLBC,Hermitage Bar & Catering,Catering Supplies - Confectionery.,21/09/2011,1221012,796.86,Palmer Harvey Mclane Ltd,A001264
North West Leicestershire District Council ,31UH,Leisure Centres,HLBC,Hermitage Bar & Catering,Catering Supplies - Confectionery.,28/09/2011,1221725,667.62,Palmer Harvey Mclane Ltd,A001264
North West Leicestershire District Council ,31UH,Leisure Centres,HLBC,Hermitage Bar & Catering,Catering Supplies - Confectionery.,28/09/2011,1221722,580.27,Palmer Harvey Mclane Ltd,A001264
North West Leicestershire District Council ,31UH,Information Technology,ICT,ICT Services,Photocopiers and consumables,31/08/2011,1220207,"7,563.86",The Danwood Group Ltd,A001301
North West Leicestershire District Council ,31UH,Information Technology,ICT,ICT Services,Photocopiers and consumables,20/09/2011,1221273,"3,000.00",The Danwood Group Ltd,A001301
North West Leicestershire District Council ,31UH,Finance,FINPLA,Financial Planning,Parish precepts,28/09/2011,1221574,"23,232.74",Ravenstone With Snibston PC,A001364
North West Leicestershire District Council ,31UH,Planning & Development,EDC,Environment - Development Control,Advertising Agency,21/09/2011,1221056,792.37,Euro RSCG Riley,A001395
North West Leicestershire District Council ,31UH,Communications,CS,Corporate - Customer Services,Mail services,28/09/2011,1221720,"5,396.14",Royal Mail Group Plc,A001418
North West Leicestershire District Council ,31UH,Leisure Centres,HLC,Hermitage Leisure Centre,Water - Sewerage services,31/08/2011,1219992,669.86,Severn Trent Water Limited,A001468
North West Leicestershire District Council ,31UH,Housing,HRAHM,HRA Housing Management,Water - Sewerage services,07/09/2011,1220526,"1,128.42",Severn Trent Water Limited,A001468
North West Leicestershire District Council ,31UH,Property Services,PROPFM,Property Facilities Management,Water - Sewerage services,14/09/2011,1220863,"2,242.48",Severn Trent Water Limited,A001468
North West Leicestershire District Council ,31UH,Leisure Centres,HPLC,Hood Park Leisure Centre,Water - Sewerage services,21/09/2011,1221117,"2,224.05",Severn Trent Water Limited,A001468
North West Leicestershire District Council ,31UH,Leisure Centres,HLC,Hermitage Leisure Centre,Water - Sewerage services,21/09/2011,1221120,965.00,Severn Trent Water Limited,A001468
North West Leicestershire District Council ,31UH,Street Management,ENOT,Environment Transport,Water - Sewerage services,21/09/2011,1221208,"3,293.62",Severn Trent Water Limited,A001468
North West Leicestershire District Council ,31UH,Environmental Health,EES,Environmental Services,Water - Sewerage services,28/09/2011,1221603,"1,924.06",Severn Trent Water Limited,A001468
North West Leicestershire District Council ,31UH,Finance,FINPLA,Financial Planning,Parish precepts,28/09/2011,1221575,"3,088.00",Snarestone Parish Council,A001524
North West Leicestershire District Council ,31UH,Leisure Centres,HLC,Hermitage Leisure Centre,Water - Treatment Chemicals,21/09/2011,1221074,878.29,Stowlin Ltd,A001591
North West Leicestershire District Council ,31UH,Leisure Centres,HPLC,Hood Park Leisure Centre,Water - Treatment Chemicals,28/09/2011,1220386,"1,280.02",Stowlin Ltd,A001591
North West Leicestershire District Council ,31UH,Finance,FINPLA,Financial Planning,Parish precepts,28/09/2011,1221576,"9,000.00",Swannington Parish Council,A001608
North West Leicestershire District Council ,31UH,Finance,FINPLA,Financial Planning,Parish precepts,28/09/2011,1221577,"1,976.41",Swepstone Parish Council,A001613
North West Leicestershire District Council ,31UH,Street Management,ENOT,Environment Transport,Vehicle Parts - Recycling Vehicles ,31/08/2011,1219959,"1,953.00",Terberg Matec UK Limited,A001647
North West Leicestershire District Council ,31UH,Street Management,ENOT,Environment Transport,Vehicle Parts - Recycling Vehicles ,07/09/2011,1220554,512.70,Terberg Matec UK Limited,A001647
North West Leicestershire District Council ,31UH,Housing Repairs,HRAHRM,HRA Housing Repairs & Maintenance,Building Supplies - Power tool sales,14/09/2011,1220807,"3,228.40",Terratruck Distribution Services Ltd,A001648
North West Leicestershire District Council ,31UH,Housing Repairs,HRAHRM,HRA Housing Repairs & Maintenance,Building Supplies - Power tool sales,14/09/2011,1220809,508.00,Terratruck Distribution Services Ltd,A001648
North West Leicestershire District Council ,31UH,Housing,HRAPBS,HRA Performance & Business Support,Alarms - older persons system repairs and maintenance,21/09/2011,1220865,"48,587.74",Tunstall Healthcare (UK) Limited,A001701
North West Leicestershire District Council ,31UH,Street Management,ESS,Environment - Street Scene,Leisure - Play Equipment,07/09/2011,1219519,"4,664.02",Wicksteed Leisure Limited,A001789
North West Leicestershire District Council ,31UH,Street Management,ESS,Environment - Street Scene,Leisure - Play Equipment,07/09/2011,1220321,973.66,Wicksteed Leisure Limited,A001789
North West Leicestershire District Council ,31UH,Finance,FINPLA,Financial Planning,Parish precepts,28/09/2011,1221578,"4,500.00",Worthington Parish Council,A001813
North West Leicestershire District Council ,31UH,Leisure Centres,HLBC,Hermitage Bar & Catering,Brewery,07/09/2011,1220275,501.51,Scottish & Newcastle UK,A001828
North West Leicestershire District Council ,31UH,Leisure Centres,HLBC,Hermitage Bar & Catering,Brewery,21/09/2011,1220993,"1,852.46",Scottish & Newcastle UK,A001828
North West Leicestershire District Council ,31UH,Leisure Centres,HPLC,Hood Park Leisure Centre,Leisure - Swimwear and accessories,21/09/2011,1221011,745.20,Zoggs International Ltd,A001833
North West Leicestershire District Council ,31UH,Finance,FINPLA,Financial Planning,Insurance policies,07/09/2011,1220421,"2,500.00",Zurich Insurance Company,A001836
North West Leicestershire District Council ,31UH,Finance,EXCH,Exchequer Services,Telecoms - Mobile,20/09/2011,1221282,"5,741.69",Vodafone Limited,A001861
North West Leicestershire District Council ,31UH,Leisure Centres,HLC,Hermitage Leisure Centre,Boiler Maintenance ,28/09/2011,1221641,960.00,Wellman Thermal Services Limited,A002298
North West Leicestershire District Council ,31UH,Finance,BENS,Housing Benefits,"ICT - Software, Maintenance and Licenses for IBS Housing",28/09/2011,1221736,"1,045.00",Capita Business Services Ltd,A002968
North West Leicestershire District Council ,31UH,Finance,EXCH,Exchequer Services,Debt Collection,14/09/2011,1220632,"1,103.60",Kings Armoured Security Services Ltd,A004468
North West Leicestershire District Council ,31UH,Leisure Centres,CDCC,Castle Donington Community College,Portable accommodation,21/09/2011,1221072,509.26,Elliott Group Limited,A005413
North West Leicestershire District Council ,31UH,Leisure Centres,CDCC,Castle Donington Community College,Portable accommodation,21/09/2011,1221073,509.26,Elliott Group Limited,A005413
North West Leicestershire District Council ,31UH,Leisure & Culture,SPA,Sport & Physical Activity,Catering Services - Equipment,14/09/2011,1220704,594.75,Nisbets Plc,A007087
North West Leicestershire District Council ,31UH,Finance,EXCH,Exchequer Services,Policing,06/09/2011,1220479,"538,783.60",Leicestershire Police Authority,A007096
North West Leicestershire District Council ,31UH,Property Services,PROPCL,Property Commercial Lettings,Mail Supplies -Franking Machine,07/09/2011,1220264,"2,020.00",Purchase Power,A008204
North West Leicestershire District Council ,31UH,Street Management,ENOT,Environment Transport,Road fund licences,14/09/2011,1220925,650.00,Post Office Limited,A008559
North West Leicestershire District Council ,31UH,Finance,EXCH,Exchequer Services,Leasing - Vehicles,28/09/2011,1221595,"3,776.11",Lex Autolease Ltd,A008591
North West Leicestershire District Council ,31UH,Information Technology,ICT,ICT Services,IT - Telephone and computing,14/09/2011,1220630,"4,259.55",Virgin Media Business,A008908
North West Leicestershire District Council ,31UH,Leisure Centres,HPLC,Hood Park Leisure Centre,IT - Telephone and computing,21/09/2011,1221163,580.83,Virgin Media Business,A008908
North West Leicestershire District Council ,31UH,Street Management,ENOP,Environment Parks,PPE,31/08/2011,1219968,593.56,Westbury Industrial Supplies Limited,A009933
North West Leicestershire District Council ,31UH,Housing Repairs,HRAHRM,HRA Housing Repairs & Maintenance,PPE,21/09/2011,1221289,979.54,Westbury Industrial Supplies Limited,A009933
North West Leicestershire District Council ,31UH,Planning & Development,EDC,Environment - Development Control,membership fees,21/09/2011,1221333,790.00,Surrey County Council,A010365
North West Leicestershire District Council ,31UH,Finance,EXCH,Exchequer Services,IT - software services,14/09/2011,1220476,966.99,Selima Limited,A010859
North West Leicestershire District Council ,31UH,Finance,EXCH,Exchequer Services,IT - software services,14/09/2011,1220651,917.70,Selima Limited,A010859
North West Leicestershire District Council ,31UH,Communications,CP,Corporate - Communications,Public Admin Licence - CP9705,14/09/2011,1220719,830.70,The Copyright Licensing Agency,A011217
North West Leicestershire District Council ,31UH,Leisure Centres,HPLC,Hood Park Leisure Centre,Awards - Swimming ,31/08/2011,1219891,628.75,ASA Awards Scheme,A011992
North West Leicestershire District Council ,31UH,Housing,HRAHM,HRA Housing Management,Grant payment,21/09/2011,1221195,"1,012.00",North West Leicestershire,A013575
North West Leicestershire District Council ,31UH,Housing Repairs,HRAHRM,HRA Housing Repairs & Maintenance,Builders - Office Refurb Contract,21/09/2011,1221562,"2,830.67",G F Tomlinson Building Ltd,A015236
North West Leicestershire District Council ,31UH,Street Management,ENOT,Environment Transport,Bags - Polythene bags manufacturer,21/09/2011,1221142,595.00,BPI Recycled Products,A017624
North West Leicestershire District Council ,31UH,Street Management,ENOT,Environment Transport,Bags - Polythene bags manufacturer,28/09/2011,1219173,"1,212.60",BPI Recycled Products,A017624
North West Leicestershire District Council ,31UH,Street Management,ENOT,Environment Transport,Electricity supplier,21/09/2011,1221191,625.17,Npower,A020529
North West Leicestershire District Council ,31UH,Finance,EXCH,Exchequer Services,IT - software services,19/10/2011,1220213,"8,859.92",Civica Ltd,A021357
North West Leicestershire District Council ,31UH,Finance,FINPLA,Financial Planning,Parish precepts,28/09/2011,1221567,"28,675.00",Ellistown And Battleflat Parish Council,A021576
North West Leicestershire District Council ,31UH,Finance,FINPLA,Financial Planning,Bond payment,31/08/2011,1220206,"39,621.64",Stroud & Swindon Bldg Soc,A022324
North West Leicestershire District Council ,31UH,Leisure Centres,HLC,Hermitage Leisure Centre,IT - software services,31/08/2011,1219905,"10,700.00",Gladstone MRM Ltd,A024642
North West Leicestershire District Council ,31UH,Housing,HRAHM,HRA Housing Management,Printing Services,14/09/2011,1220705,"1,400.00",Wilpbond Limited t/a Prontaprint,A025384
North West Leicestershire District Council,31UH,Housing Repair,HRAHRM,HRA Housing Repairs & Maintenance,Gas & Electricity - Gas installation ,07/09/2011,1220426,693.33,British Gas Trading Limited,A026237
North West Leicestershire District Council ,31UH,Housing Strategy,HS,Community - Housing Strategy,Homelessness - Bed & Breakfast,21/09/2011,1221254,540.00,Leicester City Hotel,A027377
North West Leicestershire District Council ,31UH,Leisure Centres,HLC,Hermitage Leisure Centre,Travel costs,07/09/2011,1220269,"1,255.00",Stathams Coaches Ltd,A027406
North West Leicestershire District Council ,31UH,Planning & Development,EPP,Environment Planning Policy,Consultancy Fees ,14/09/2011,1220791,"11,469.50",Leicestershire County Council,A027423
North West Leicestershire District Council ,31UH,Planning & Development,EBC,Building Control,Land Charges,28/09/2011,1221751,"2,040.90",Leicestershire County Council,A027423
North West Leicestershire District Council ,31UH,Leisure & Culture,CULTEV,Cultural Services Arts & Events,Partnershop Grant,14/09/2011,1220911,"1,720.83",Age Concern Leicestershire & Rutland (Welfare services) ltd,A027552
North West Leicestershire District Council ,31UH,Environmental Health,EES,Environmental Services,Grant payment,07/09/2011,1220418,"3,275.00",MJM Plumbing & Heating Services (Midlands) Ltd,A027561
North West Leicestershire District Council ,31UH,Leisure & Culture,CULTEV,Cultural Services Arts & Events,Sound & Lighting - Corporate Events,14/09/2011,1220498,"1,485.00",Chameleon Pro Audio & Lighting Ltd,A027592
North West Leicestershire District Council ,31UH,Corporate Director,HR,Human Resources,Criminal Records Checks,06/09/2011,1220477,924.00,Criminal Records Bureau,A027625
North West Leicestershire District Council ,31UH,Housing Strategy,HS,Community - Housing Strategy,Accommodation - Bed and Breakfast,07/09/2011,1219918,980.00,The Cedars,A027796
North West Leicestershire District Council ,31UH,Housing Strategy,HS,Community - Housing Strategy,Accommodation - Bed and Breakfast,07/09/2011,1219917,"2,025.00",The Cedars,A027796
North West Leicestershire District Council ,31UH,Finance,EXCH,Exchequer Services,Precept ,06/09/2011,1220480,"169,530.00","Leicester, Leicestershire &",A028339
North West Leicestershire District Council ,31UH,Street Management,ENOGT,Environment General Technician,Street Lighting works,21/09/2011,1221147,"2,202.09",Leicestershire County Council,A028430
North West Leicestershire District Council ,31UH,Finance,EXCH,Exchequer Services,NNDR National Contribution ,31/08/2011,1220200,"1,893,813.00",Department for Communities & Local Government,A028518
North West Leicestershire District Council ,31UH,Finance,EXCH,Exchequer Services,NNDR National Contribution ,06/09/2011,1220485,"1,893,814.00",Department for Communities & Local Government,A028518
North West Leicestershire District Council ,31UH,Finance,EXCH,Exchequer Services,NNDR National Contribution ,20/09/2011,1221271,"1,893,813.00",Department for Communities & Local Government,A028518
North West Leicestershire District Council ,31UH,Legal & Democratic,LDCE,Civic Expenses,Printing Electoral Documents,07/09/2011,1220541,"3,325.72",SCI Print Limited,A028974
North West Leicestershire District Council ,31UH,Property Services,PROPFM,Property Facilities Management,Energy - Electricity - Contract 1,14/09/2011,1220862,"3,167.77",Southern Electric,A030266
North West Leicestershire District Council ,31UH,Leisure Centres,HPLC,Hood Park Leisure Centre,Energy - Electricity - Contract 1,21/09/2011,1221118,"2,008.19",Southern Electric,A030266
North West Leicestershire District Council ,31UH,Leisure Centres,HLC,Hermitage Leisure Centre,Energy - Electricity - Contract 1,21/09/2011,1221119,"2,271.22",Southern Electric,A030266
North West Leicestershire District Council ,31UH,Environmental Health,EES,Environmental Services,Energy - Electricity - Contract 1,28/09/2011,1221599,805.58,Southern Electric,A030266
North West Leicestershire District Council ,31UH,Finance,FINPLA,Financial Planning,Bond payment,20/09/2011,1221279,"34,280.82",Cornwall County Council,A031018
North West Leicestershire District Council ,31UH,Environmental Health,EEHL,Environmental Health & Licensing,Subscription - Food Safety,21/09/2011,1221216,675.00,ABC Food Safety Ltd,A031298
North West Leicestershire District Council ,31UH,Communications,CS,Corporate - Customer Services,Postage - Franking machine leasing,31/08/2011,1220003,"1,120.07",Neopost Finance Limited,A031590
North West Leicestershire District Council,31UH,Housing Repair,HRAHRM,HRA Housing Repairs & Maintenance,Gas & Electricity - Boiler replacement,07/09/2011,1220425,"1,538.81",Lakers UK,A031787
North West Leicestershire District Council,31UH,Housing Repair,HRAHRM,HRA Housing Repairs & Maintenance,Gas & Electricity - Boiler replacement,07/09/2011,1220428,"1,235.67",Lakers UK,A031787
North West Leicestershire District Council,31UH,Housing Repair,HRAHRM,HRA Housing Repairs & Maintenance,Gas & Electricity - Boiler replacement,07/09/2011,1220431,"2,618.48",Lakers UK,A031787
North West Leicestershire District Council,31UH,Housing Repair,HRAHRM,HRA Housing Repairs & Maintenance,Gas & Electricity - Boiler replacement,07/09/2011,1220433,"2,440.04",Lakers UK,A031787
North West Leicestershire District Council,31UH,Housing Repair,HRAHRM,HRA Housing Repairs & Maintenance,Gas & Electricity - Boiler replacement,31/08/2011,1221434,540.00,Lakers UK,A031787
North West Leicestershire District Council,31UH,Housing Repair,HRAHRM,HRA Housing Repairs & Maintenance,Gas & Electricity - Boiler replacement,31/08/2011,1221436,"1,092.50",Lakers UK,A031787
North West Leicestershire District Council,31UH,Housing Repair,HRAHRM,HRA Housing Repairs & Maintenance,Gas & Electricity - Boiler replacement,31/08/2011,1221437,520.00,Lakers UK,A031787
North West Leicestershire District Council,31UH,Housing Repair,HRAHRM,HRA Housing Repairs & Maintenance,Gas & Electricity - Boiler replacement,31/08/2011,1221440,"1,044.51",Lakers UK,A031787
North West Leicestershire District Council,31UH,Housing Repair,HRAHRM,HRA Housing Repairs & Maintenance,Gas & Electricity - Boiler replacement,31/08/2011,1221427,"1,730.40",Lakers UK,A031787
North West Leicestershire District Council,31UH,Housing Repair,HRAHRM,HRA Housing Repairs & Maintenance,Gas & Electricity - Boiler replacement,14/09/2011,1221423,"1,315.01",Lakers UK,A031787
North West Leicestershire District Council,31UH,Housing Repair,HRAHRM,HRA Housing Repairs & Maintenance,Gas & Electricity - Boiler replacement,14/09/2011,1221412,"1,154.89",Lakers UK,A031787
North West Leicestershire District Council,31UH,Housing Repair,HRAHRM,HRA Housing Repairs & Maintenance,Gas & Electricity - Boiler replacement,14/09/2011,1221411,777.97,Lakers UK,A031787
North West Leicestershire District Council,31UH,Housing Repair,HRAHRM,HRA Housing Repairs & Maintenance,Gas & Electricity - Boiler replacement,21/09/2011,1221406,"7,713.11",Lakers UK,A031787
North West Leicestershire District Council,31UH,Housing Repair,HRAHRM,HRA Housing Repairs & Maintenance,Gas & Electricity - Boiler replacement,21/09/2011,1221442,"7,296.56",Lakers UK,A031787
North West Leicestershire District Council,31UH,Housing Repair,HRAHRM,HRA Housing Repairs & Maintenance,Gas & Electricity - Boiler replacement,21/09/2011,1221468,"2,032.42",Lakers UK,A031787
North West Leicestershire District Council,31UH,Housing Repair,HRAHRM,HRA Housing Repairs & Maintenance,Gas & Electricity - Boiler replacement,21/09/2011,1221478,"2,440.04",Lakers UK,A031787
North West Leicestershire District Council,31UH,Housing Repair,HRAHRM,HRA Housing Repairs & Maintenance,Gas & Electricity - Boiler replacement,21/09/2011,1221479,"2,320.67",Lakers UK,A031787
North West Leicestershire District Council,31UH,Housing Repair,HRAHRM,HRA Housing Repairs & Maintenance,Gas & Electricity - Boiler replacement,28/09/2011,1221477,983.58,Lakers UK,A031787
North West Leicestershire District Council ,31UH,Housing,HRAHM,HRA Housing Management,Fuel - solid,07/09/2011,1220531,"1,587.22",Coal4Energy Ltd,A031928
North West Leicestershire District Council ,31UH,Chief Exec,CHEX,Chief Executive,Web Design - Ashby website,07/09/2011,1220399,"2,835.20",Socius Limited,A031950
North West Leicestershire District Council ,31UH,Chief Exec,CHEX,Chief Executive,Web Design - Ashby website,28/09/2011,1221734,"2,475.20",Socius Limited,A031950
North West Leicestershire District Council ,31UH,Street Management,ENOT,Environment Transport,Heavy Plant Machinery - JCB Dealership,07/09/2011,1220544,830.69,Watling JCB Ltd,A032114
North West Leicestershire District Council ,31UH,Street Management,ENOT,Environment Transport,Heavy Plant Machinery - JCB Dealership,31/08/2011,1219816,535.90,Watling JCB Ltd,A032114
North West Leicestershire District Council ,31UH,Housing Strategy,HS,Community - Housing Strategy,Accomodation - Bed and Breakfast for Housing Strategy,07/09/2011,1220559,560.00,Pinewood Lodge,A032364
North West Leicestershire District Council ,31UH,Housing Strategy,HS,Community - Housing Strategy,Accomodation - Bed and Breakfast for Housing Strategy,14/09/2011,1220667,560.00,Pinewood Lodge,A032364
North West Leicestershire District Council ,31UH,Property Services,PROPCL,Property Commercial Lettings,Rental/Maintenance charges,31/08/2011,1220242,516.05,Pitney Bowes Finance Plc,A032630
North West Leicestershire District Council ,31UH,Information Technology,ICT,ICT Services,IT - Telecommunications and data services,,1220537,"1,824.58",Freedom Communications (UK) Ltd,A032826
North West Leicestershire District Council ,31UH,Information Technology,ICT,ICT Services,IT - Telecommunications and data services,14/09/2011,1220726,"1,824.58",Freedom Communications (UK) Ltd,A032826
North West Leicestershire District Council ,31UH,Information Technology,ICT,ICT Services,IT - Telecommunications and data services,14/09/2011,1220858,"1,824.58",Freedom Communications (UK) Ltd,A032826
North West Leicestershire District Council ,31UH,Corporate Director,HR,Human Resources,Consultancy,21/09/2011,1221290,"1,398.90",Libby Carter Limited,A033121
North West Leicestershire District Council ,31UH,Information Technology,ICT,ICT Services,IT - Computer networking and cabling,31/08/2011,1220008,510.00,Modern Telecom Limited,A033207
North West Leicestershire District Council ,31UH,Housing Repairs,HRAHRM,HRA Housing Repairs & Maintenance,Building Services,14/09/2011,1220812,"6,966.66",J Tomlinson Ltd,A033342
North West Leicestershire District Council ,31UH,Housing Repairs,HRAHRM,HRA Housing Repairs & Maintenance,Building Services,28/09/2011,1221657,"2,830.67",J Tomlinson Ltd,A033342
North West Leicestershire District Council ,31UH,Environmental Health,EEHL,Environmental Health & Licensing,Animals - Veterinary Care,28/09/2011,1221067,818.21,Eville And Jones Limited,A033670
North West Leicestershire District Council ,31UH,Information Technology,ICT,ICT Services,Photocopiers and consumables,31/08/2011,1220209,938.71,Danwood Contract Rentals,A033719
North West Leicestershire District Council ,31UH,Information Technology,ICT,ICT Services,Photocopiers and consumables,14/09/2011,1220907,813.93,Danwood Contract Rentals,A033719
North West Leicestershire District Council ,31UH,Information Technology,ICT,ICT Services,Photocopiers and consumables,21/09/2011,1221337,"2,234.75",Danwood Contract Rentals,A033719
North West Leicestershire District Council ,31UH,Leisure Centres,HPLC,Hood Park Leisure Centre,Entertainment,21/09/2011,1221005,650.00,Vocals Entertainment Ltd,A033748
North West Leicestershire District Council ,31UH,Leisure Centres,HLC,Hermitage Leisure Centre,Entertainment,21/09/2011,1221078,650.00,Vocals Entertainment Ltd,A033748
North West Leicestershire District Council ,31UH,Leisure Centres,HLC,Hermitage Leisure Centre,Entertainment,21/09/2011,1221079,650.00,Vocals Entertainment Ltd,A033748
North West Leicestershire District Council ,31UH,Corporate Director,HR,Human Resources,Interim management,07/09/2011,1220327,842.40,BJD Associates Ltd,A034045
North West Leicestershire District Council ,31UH,Housing,HRAPBS,HRA Performance & Business Support,Subscription - Lifeline Telecare,14/09/2011,1220866,"1,931.75",Midlands Telecare,A034150
North West Leicestershire District Council ,31UH,Planning & Development,EBC,Building Control,IT - Scanning equipment,28/09/2011,1221592,500.00,Idox Software Ltd,A034157
North West Leicestershire District Council ,31UH,Planning & Development,ECP,Environment Community Planning,IT - Scanning equipment,21/09/2011,1221027,"4,425.00",Idox Software Ltd,A034157
North West Leicestershire District Council ,31UH,Finance,EXCH,Exchequer Services,Electricity - Supply for contract 4,28/09/2011,1221610,"7,281.19",British Gas Business,A034733
North West Leicestershire District Council ,31UH,Street Management,ENOP,Environment Parks,Grounds Maintenance - Tree Surgeons Contractors,31/08/2011,1219961,700.00,Beaver Treework,A035021
North West Leicestershire District Council ,31UH,Street Management,ENOP,Environment Parks,Grounds Maintenance - Tree Surgeons Contractors,14/09/2011,1220798,"1,200.00",Beaver Treework,A035021
North West Leicestershire District Council ,31UH,Street Management,ENOP,Environment Parks,Grounds Maintenance - Tree Surgeons Contractors,28/09/2011,1221225,"1,790.00",Beaver Treework,A035021
North West Leicestershire District Council ,31UH,Information Technology,ICT,ICT Services,Electronic circuits maintenance,28/09/2011,1219887,"7,238.00",Chloride Electronics Limited,A035119
North West Leicestershire District Council ,31UH,Street Management,ENOT,Environment Transport,Tyre Supplier,14/09/2011,1220650,"1,098.00",Malvern Tyres,A035175
North West Leicestershire District Council ,31UH,Street Management,ENOP,Environment Parks,Grounds Maintenance - Landscaping,14/09/2011,1220728,"1,700.00",Manor Landscapes,A035186
North West Leicestershire District Council ,31UH,Neighbourhoods & Communities,NACN,N & C Neighbourhoods,Training and Recruitment,14/09/2011,1220818,"3,295.20",Home-Start NWL,A035295
North West Leicestershire District Council ,31UH,Neighbourhoods & Communities,NACN,N & C Neighbourhoods,Training and Recruitment,14/09/2011,1220819,"7,755.00",Home-Start NWL,A035295
North West Leicestershire District Council ,31UH,Housing Repairs,HRAHRM,HRA Housing Repairs & Maintenance,Waste - Tipping building,31/08/2011,1220218,"1,041.22",Ward Recycling,A035471
North West Leicestershire District Council ,31UH,Housing Repairs,HRAHRM,HRA Housing Repairs & Maintenance,Waste - Tipping building,14/09/2011,1220811,"1,034.90",Ward Recycling,A035471
North West Leicestershire District Council ,31UH,Leisure & Culture,SPA,Sport & Physical Activity,Coach Education Grant,31/08/2011,1220001,715.00,Ivanhoe Robins Junior Atheletic Club,A035617
North West Leicestershire District Council ,31UH,Housing Repairs,HRAHRM,HRA Housing Repairs & Maintenance,Fuel servicing (Hsg Maintenance),21/09/2011,1221125,521.66,Elite Sweep Service,A035675
North West Leicestershire District Council ,31UH,Housing Repairs,HRAHRM,HRA Housing Repairs & Maintenance,Fuel servicing (Hsg Maintenance),21/09/2011,1221161,"3,435.28",Elite Sweep Service,A035675
North West Leicestershire District Council ,31UH,Housing Repairs,HRAHRM,HRA Housing Repairs & Maintenance,Fuel servicing (Hsg Maintenance),21/09/2011,1221167,"4,085.92",Elite Sweep Service,A035675
North West Leicestershire District Council ,31UH,Housing,HRAHM,HRA Housing Management,Energy - Gas - Contract 2 + 5 + 6,28/09/2011,1221715,842.05,Corona Energy Retail 4 Ltd,A035709
North West Leicestershire District Council ,31UH,Housing Repairs,HRAHRM,HRA Housing Repairs & Maintenance,Electricty Charges,14/09/2011,1220806,"1,038.85",British Gas Business,A035745
North West Leicestershire District Council ,31UH,Housing,HRAHM,HRA Housing Management,Grant payment,21/09/2011,1221199,500.00,Willesley Estate TARA,A035881
North West Leicestershire District Council ,31UH,Housing,HRAPBS,HRA Performance & Business Support,Payment Cards,14/09/2011,1220340,"1,035.11",PrintSearch Chester Limited,A036087
North West Leicestershire District Council ,31UH,Housing,HRAPBS,HRA Performance & Business Support,Payment Cards,28/09/2011,1221347,675.00,PrintSearch Chester Limited,A036087
North West Leicestershire District Council ,31UH,Property Services,PROPFM,Property Facilities Management,Office Relocations,28/09/2011,1220511,842.00,Pickfords,A036133
North West Leicestershire District Council ,31UH,Property Services,PROPFM,Property Facilities Management,Office Relocations,28/09/2011,1221694,691.00,Pickfords,A036133
North West Leicestershire District Council ,31UH,Planning & Development,ECP,Environment Community Planning,Service Level Agreement,31/08/2011,1220239,"4,290.00",Rural Community Council,A036136
North West Leicestershire District Council ,31UH,Property Services,PROPCL,Property Commercial Lettings,Building - General Maintenance works - Minor framework,14/09/2011,1220703,802.80,Alf Wright Construction Limited,A036239
North West Leicestershire District Council,31UH,Housing Repair,HRAHRM,HRA Housing Repairs & Maintenance,Building - General Maintenance works - Minor framework,07/09/2011,1220318,"1,375.00",Alf Wright Construction Limited,A036239
North West Leicestershire District Council,31UH,Housing Repair,HRAHRM,HRA Housing Repairs & Maintenance,Building - General Maintenance works - Minor framework,07/09/2011,1220319,"1,086.00",Alf Wright Construction Limited,A036239
North West Leicestershire District Council,31UH,Housing Repair,HRAHRM,HRA Housing Repairs & Maintenance,Building - General Maintenance works - Minor framework,07/09/2011,1220314,815.00,Alf Wright Construction Limited,A036239
North West Leicestershire District Council,31UH,Housing Repair,HRAHRM,HRA Housing Repairs & Maintenance,Building - General Maintenance works - Minor framework,07/09/2011,1220313,815.00,Alf Wright Construction Limited,A036239
North West Leicestershire District Council,31UH,Housing Repair,HRAHRM,HRA Housing Repairs & Maintenance,Building - General Maintenance works - Minor framework,07/09/2011,1220311,815.00,Alf Wright Construction Limited,A036239
North West Leicestershire District Council,31UH,Housing Repair,HRAHRM,HRA Housing Repairs & Maintenance,Building - General Maintenance works - Minor framework,07/09/2011,1220310,815.00,Alf Wright Construction Limited,A036239
North West Leicestershire District Council,31UH,Housing Repair,HRAHRM,HRA Housing Repairs & Maintenance,Building - General Maintenance works - Minor framework,07/09/2011,1220309,"2,829.37",Alf Wright Construction Limited,A036239
North West Leicestershire District Council,31UH,Housing Repair,HRAHRM,HRA Housing Repairs & Maintenance,Building - General Maintenance works - Minor framework,07/09/2011,1220308,"2,207.27",Alf Wright Construction Limited,A036239
North West Leicestershire District Council,31UH,Housing Repair,HRAHRM,HRA Housing Repairs & Maintenance,Building - General Maintenance works - Minor framework,07/09/2011,1220307,"2,207.27",Alf Wright Construction Limited,A036239
North West Leicestershire District Council,31UH,Housing Repair,HRAHRM,HRA Housing Repairs & Maintenance,Building - General Maintenance works - Minor framework,07/09/2011,1220306,"2,207.27",Alf Wright Construction Limited,A036239
North West Leicestershire District Council,31UH,Housing Repair,HRAHRM,HRA Housing Repairs & Maintenance,Building - General Maintenance works - Minor framework,07/09/2011,1220305,"2,207.27",Alf Wright Construction Limited,A036239
North West Leicestershire District Council,31UH,Housing Repair,HRAHRM,HRA Housing Repairs & Maintenance,Building - General Maintenance works - Minor framework,07/09/2011,1220304,"2,095.91",Alf Wright Construction Limited,A036239
North West Leicestershire District Council,31UH,Housing Repair,HRAHRM,HRA Housing Repairs & Maintenance,Building - General Maintenance works - Minor framework,07/09/2011,1220303,"1,863.14",Alf Wright Construction Limited,A036239
North West Leicestershire District Council,31UH,Housing Repair,HRAHRM,HRA Housing Repairs & Maintenance,Building - General Maintenance works - Minor framework,07/09/2011,1220302,"2,025.67",Alf Wright Construction Limited,A036239
North West Leicestershire District Council,31UH,Housing Repair,HRAHRM,HRA Housing Repairs & Maintenance,Building - General Maintenance works - Minor framework,07/09/2011,1220301,"2,194.95",Alf Wright Construction Limited,A036239
North West Leicestershire District Council,31UH,Housing Repair,HRAHRM,HRA Housing Repairs & Maintenance,Building - General Maintenance works - Minor framework,07/09/2011,1220300,"2,102.66",Alf Wright Construction Limited,A036239
North West Leicestershire District Council,31UH,Housing Repair,HRAHRM,HRA Housing Repairs & Maintenance,Building - General Maintenance works - Minor framework,28/09/2011,1220467,587.89,Alf Wright Construction Limited,A036239
North West Leicestershire District Council ,31UH,Planning & Development,EPP,Environment Planning Policy,Planning - Produce town centre guide for Coalville,28/09/2011,1221343,"1,822.00",Bubble Effective Marketing Solutions Limited,A036294
North West Leicestershire District Council ,31UH,Planning & Development,ECCTV,Environment - Town Centre/CCTV,Events,07/09/2011,1220564,625.00,Get The Specialist,A036449
North West Leicestershire District Council ,31UH,Housing Repairs,HRAHRM,HRA Housing Repairs & Maintenance,Maintenance Materials,20/09/2011,1221277,"47,046.66",Collective Enterprises Ltd,A036453
North West Leicestershire District Council ,31UH,Leisure & Culture,SPA,Sport & Physical Activity,Leisure - cholesterol screening - active together,31/08/2011,1219659,983.95,BHR Pharmaceuticals Limited,A036681
North West Leicestershire District Council ,31UH,Planning & Development,EDC,Environment - Development Control,IT - Scanning equipment,28/09/2011,1221146,695.00,Allied Images Limited,A036688
North West Leicestershire District Council ,31UH,Finance,EXCH,Exchequer Services,Recruitment - Agency Broker,28/09/2011,1221589,"13,160.94",Comensura Limited,A036958
North West Leicestershire District Council ,31UH,Finance,EXCH,Exchequer Services,Recruitment - Agency Broker,31/08/2011,1219944,"10,586.23",Comensura Limited,A036958
North West Leicestershire District Council ,31UH,Finance,EXCH,Exchequer Services,Recruitment - Agency Broker,07/09/2011,1220247,"10,576.84",Comensura Limited,A036958
North West Leicestershire District Council ,31UH,Finance,EXCH,Exchequer Services,Recruitment - Agency Broker,14/09/2011,1220652,"6,341.15",Comensura Limited,A036958
North West Leicestershire District Council ,31UH,Finance,EXCH,Exchequer Services,Recruitment - Agency Broker,21/09/2011,1221215,"8,854.07",Comensura Limited,A036958
North West Leicestershire District Council ,31UH,Property Services,PROPFM,Property Facilities Management,Legionella Risk Assessments,28/09/2011,1221750,567.00,Rentokil Initial UK Limited,A037013
North West Leicestershire District Council ,31UH,Leisure & Culture,CULTYP,Cultural Services Children & YoungPeople,Grant payment,21/09/2011,1221212,"1,624.00",Junction 11 Youth Forum,A037227
North West Leicestershire District Council ,31UH,Street Management,ENOT,Environment Transport,Fuel - Diesel & Gas Oil,07/09/2011,1220495,"20,706.32",Emo Oil Limited,A037391
North West Leicestershire District Council ,31UH,Street Management,ENOT,Environment Transport,Fuel - Diesel & Gas Oil,07/09/2011,1220496,550.15,Emo Oil Limited,A037391
North West Leicestershire District Council ,31UH,Corporate Director,HR,Human Resources,Consultancy - Project Mgmt,07/09/2011,1220333,"7,637.50",Darcel Consulting Limited,A038029
North West Leicestershire District Council,31UH,Housing Repair,HRAHRM,HRA Housing Repairs & Maintenance,Construction - Rewire Works,07/09/2011,1220438,"2,302.51",Lovell Respond,A038131
North West Leicestershire District Council,31UH,Housing Repair,HRAHRM,HRA Housing Repairs & Maintenance,Construction - Rewire Works,07/09/2011,1220439,"2,194.95",Lovell Respond,A038131
North West Leicestershire District Council,31UH,Housing Repair,HRAHRM,HRA Housing Repairs & Maintenance,Construction - Rewire Works,07/09/2011,1220440,"2,032.42",Lovell Respond,A038131
North West Leicestershire District Council,31UH,Housing Repair,HRAHRM,HRA Housing Repairs & Maintenance,Construction - Rewire Works,07/09/2011,1220441,"2,032.42",Lovell Respond,A038131
North West Leicestershire District Council,31UH,Housing Repair,HRAHRM,HRA Housing Repairs & Maintenance,Construction - Rewire Works,07/09/2011,1220442,"2,368.79",Lovell Respond,A038131
North West Leicestershire District Council,31UH,Housing Repair,HRAHRM,HRA Housing Repairs & Maintenance,Construction - Rewire Works,07/09/2011,1220443,"2,207.27",Lovell Respond,A038131
North West Leicestershire District Council,31UH,Housing Repair,HRAHRM,HRA Housing Repairs & Maintenance,Construction - Rewire Works,07/09/2011,1220444,"2,207.27",Lovell Respond,A038131
North West Leicestershire District Council,31UH,Housing Repair,HRAHRM,HRA Housing Repairs & Maintenance,Construction - Rewire Works,07/09/2011,1220445,"2,207.27",Lovell Respond,A038131
North West Leicestershire District Council,31UH,Housing Repair,HRAHRM,HRA Housing Repairs & Maintenance,Construction - Rewire Works,07/09/2011,1220446,780.00,Lovell Respond,A038131
North West Leicestershire District Council,31UH,Housing Repair,HRAHRM,HRA Housing Repairs & Maintenance,Construction - Rewire Works,07/09/2011,1220447,780.00,Lovell Respond,A038131
North West Leicestershire District Council,31UH,Housing Repair,HRAHRM,HRA Housing Repairs & Maintenance,Construction - Rewire Works,07/09/2011,1220448,815.00,Lovell Respond,A038131
North West Leicestershire District Council,31UH,Housing Repair,HRAHRM,HRA Housing Repairs & Maintenance,Construction - Rewire Works,07/09/2011,1220449,815.00,Lovell Respond,A038131
North West Leicestershire District Council,31UH,Housing Repair,HRAHRM,HRA Housing Repairs & Maintenance,Construction - Rewire Works,07/09/2011,1220450,630.00,Lovell Respond,A038131
North West Leicestershire District Council,31UH,Housing Repair,HRAHRM,HRA Housing Repairs & Maintenance,Construction - Rewire Works,07/09/2011,1220451,815.00,Lovell Respond,A038131
North West Leicestershire District Council,31UH,Housing Repair,HRAHRM,HRA Housing Repairs & Maintenance,Construction - Rewire Works,07/09/2011,1220452,815.00,Lovell Respond,A038131
North West Leicestershire District Council,31UH,Housing Repair,HRAHRM,HRA Housing Repairs & Maintenance,Construction - Rewire Works,07/09/2011,1220453,"1,065.00",Lovell Respond,A038131
North West Leicestershire District Council,31UH,Housing Repair,HRAHRM,HRA Housing Repairs & Maintenance,Construction - Rewire Works,21/09/2011,1220454,812.90,Lovell Respond,A038131
North West Leicestershire District Council,31UH,Housing Repair,HRAHRM,HRA Housing Repairs & Maintenance,Construction - Rewire Works,21/09/2011,1220455,"2,143.29",Lovell Respond,A038131
North West Leicestershire District Council,31UH,Housing Repair,HRAHRM,HRA Housing Repairs & Maintenance,Construction - Rewire Works,21/09/2011,1220456,593.23,Lovell Respond,A038131
North West Leicestershire District Council,31UH,Housing Repair,HRAHRM,HRA Housing Repairs & Maintenance,Construction - Rewire Works,21/09/2011,1220457,726.85,Lovell Respond,A038131
North West Leicestershire District Council,31UH,Housing Repair,HRAHRM,HRA Housing Repairs & Maintenance,Construction - Rewire Works,21/09/2011,1220458,691.45,Lovell Respond,A038131
North West Leicestershire District Council,31UH,Housing Repair,HRAHRM,HRA Housing Repairs & Maintenance,Construction - Rewire Works,21/09/2011,1220459,808.65,Lovell Respond,A038131
North West Leicestershire District Council,31UH,Housing Repair,HRAHRM,HRA Housing Repairs & Maintenance,Construction - Rewire Works,21/09/2011,1220460,"1,566.98",Lovell Respond,A038131
North West Leicestershire District Council,31UH,Housing Repair,HRAHRM,HRA Housing Repairs & Maintenance,Construction - Rewire Works,21/09/2011,1220461,553.39,Lovell Respond,A038131
North West Leicestershire District Council,31UH,Housing Repair,HRAHRM,HRA Housing Repairs & Maintenance,Construction - Rewire Works,21/09/2011,1220462,927.08,Lovell Respond,A038131
North West Leicestershire District Council,31UH,Housing Repair,HRAHRM,HRA Housing Repairs & Maintenance,Construction - Rewire Works,21/09/2011,1220463,"1,499.13",Lovell Respond,A038131
North West Leicestershire District Council,31UH,Housing Repair,HRAHRM,HRA Housing Repairs & Maintenance,Construction - Rewire Works,21/09/2011,1220464,834.22,Lovell Respond,A038131
North West Leicestershire District Council ,31UH,Planning & Development,ECCTV,Environment - Town Centre/CCTV,Security - Provide Monitoring Services in respect of CCTV,21/09/2011,1220800,"4,061.75",Premier Security Services (Midlands) Limited,A038132
North West Leicestershire District Council ,31UH,Information Technology,ICT,ICT Services,Paper,07/09/2011,1220335,624.47,Antalis McNaughton Limited,A038178
North West Leicestershire District Council ,31UH,Property Services,PROPFM,Property Facilities Management,Energy -Automated Meter Reading,28/09/2011,1220697,"10,573.00",Energy Metering Technology Limited,A038179
North West Leicestershire District Council ,31UH,Property Services,PROPFM,Property Facilities Management,Energy -Automated Meter Reading,28/09/2011,1220698,"2,945.00",Energy Metering Technology Limited,A038179
North West Leicestershire District Council ,31UH,Finance,EXCH,Exchequer Services,"Printing- Council Tax, NNDR and benefits",31/08/2011,1219999,"7,846.69",CFH - Total Document Management Limited,A038192
North West Leicestershire District Council ,31UH,Environment Directorate,ENVDS,Environment - Directorate Support,Design Work,31/08/2011,1219823,"2,500.00",Pegasus Planning Group,A038357
North West Leicestershire District Council ,31UH,Housing Strategy,HS,Community - Housing Strategy,Consultancy - Housing Strategy,28/09/2011,1221743,"1,100.00",GLHS Limited,A038376
North West Leicestershire District Council ,31UH,Environmental Health,EES,Environmental Services,grant payment,07/09/2011,1220419,800.00,David Kirton Designs,A038386
North West Leicestershire District Council ,31UH,Environmental Health,EES,Environmental Services,Grant payment,21/09/2011,1221104,"1,030.00",David Kirton Designs,A038386
North West Leicestershire District Council ,31UH,Housing,HRAHM,HRA Housing Management, Housing- Fire Risk Assessments,31/08/2011,1219875,"3,135.00",London Fire Consultants & Design,A038408
North West Leicestershire District Council ,31UH,Environmental Health,EES,Environmental Services,Grant payment,14/09/2011,1220868,650.40,NewDec Interiors Ltd,A038468
North West Leicestershire District Council ,31UH,Environmental Health,EES,Environmental Services,Grant payment,07/09/2011,1220417,573.00,Leicestershire County Council,A038469
North West Leicestershire District Council ,31UH,Street Management,ENOP,Environment Parks,Leisure - Painting and Decorating,31/08/2011,1219884,"2,117.00",Cyril John Decorators Limited,A038547
North West Leicestershire District Council ,31UH,Leisure Centres,HLC,Hermitage Leisure Centre,Coach hire,21/09/2011,1221071,760.00,Paul James Coaches,A038602
North West Leicestershire District Council ,31UH,Finance,FINPLA,Financial Planning,Parish precepts,28/09/2011,1221566,"10,752.00",Hugglescote & Donington Le Heath,A038616
North West Leicestershire District Council ,31UH,Finance,FINPLA,Financial Planning,Parish precepts,28/09/2011,1221565,"15,499.00",Whitwick Parish Council,A038617
North West Leicestershire District Council ,31UH,Leisure & Culture,CULTEV,Cultural Services Arts & Events,Conference & training services,14/09/2011,1220910,"1,800.00",Veronica House Project Let's Break The Cycle,A038729
North West Leicestershire District Council ,31UH,Environmental Health,EES,Environmental Services,water rates,14/09/2011,1220867,519.66,Severn Trent Water,A038767
North West Leicestershire District Council ,31UH,Street Management,ENOT,Environment Transport,Barrister at Law,,1221622,893.00,Aspects International Limited,A038791
North West Leicestershire District Council ,31UH,Finance,REVS,Revenues,Protective Clothing,21/09/2011,1221262,740.18,Gillivers Shoes,A038795
North West Leicestershire District Council ,31UH,Housing Strategy,HS,Community - Housing Strategy, Completion Homestead Road,20/09/2011,1221278,"1,161.84",Riverside Group Ltd,A038796
,,,,,,,,"11,386,128.44",,
